[Event "*** Titled Tuesday Blitz"]
[Site "Chess.com"]
[Date "2019.07.02"]
[Round "3"]
[White "mitrabhaa"]
[Black "maximnovik"]
[Result "1-0"]
[WhiteElo "2725"]
[BlackElo "2449"]
[TimeControl "180+2"]
[EndTime "13:42:48 PDT"]
[Termination "mitrabhaa won by resignation"]

1. Nf3 {[%clk 0:03:01.9]} 1... Nf6 {[%clk 0:02:59.2]} 2. g3 {[%clk 0:02:51.9]}
2... g6 {[%clk 0:02:59.6]} 3. Bg2 {[%clk 0:02:52.9]} 3... Bg7 {[%clk 0:03:01.1]}
4. O-O {[%clk 0:02:54.1]} 4... d5 {[%clk 0:03:02.6]} 5. b3 {[%clk 0:02:53.3]}
5... O-O {[%clk 0:03:03]} 6. Bb2 {[%clk 0:02:54.4]} 6... c5 {[%clk 0:03:03.9]}
7. d3 {[%clk 0:02:55]} 7... Nc6 {[%clk 0:03:04.5]} 8. Ne5 {[%clk 0:02:56.1]}
8... Nd4 {[%clk 0:02:13.2]} 9. e3 {[%clk 0:02:53.1]} 9... Nf5 {[%clk 0:02:06]}
10. Nd2 {[%clk 0:02:51.7]} 10... Ne8 {[%clk 0:01:59.7]} 11. c4 {[%clk
0:02:40.7]} 11... Qc7 {[%clk 0:01:48.4]} 12. Ndf3 {[%clk 0:02:25.1]} 12... dxc4
{[%clk 0:01:34.7]} 13. Nxc4 {[%clk 0:02:14.8]} 13... Bxb2 {[%clk 0:01:34.4]} 14.
Nxb2 {[%clk 0:02:16.7]} 14... b6 {[%clk 0:01:33.3]} 15. Rc1 {[%clk 0:02:14.3]}
15... Bb7 {[%clk 0:01:32.2]} 16. b4 {[%clk 0:02:14.3]} 16... Rd8 {[%clk
0:01:15.8]} 17. bxc5 {[%clk 0:02:14.1]} 17... bxc5 {[%clk 0:01:16.7]} 18. Qc2
{[%clk 0:02:15.5]} 18... Qb8 {[%clk 0:01:04.4]} 19. Na4 {[%clk 0:02:12.7]} 19...
Qa8 {[%clk 0:00:51.2]} 20. Qe2 {[%clk 0:01:57.4]} 20... c4 {[%clk 0:00:38.6]}
21. d4 {[%clk 0:01:50.7]} 21... Ned6 {[%clk 0:00:38.2]} 22. Nc5 {[%clk 0:01:50]}
22... Bd5 {[%clk 0:00:37.4]} 23. Rfe1 {[%clk 0:01:44.9]} 23... Ne4 {[%clk
0:00:33.1]} 24. Nxe4 {[%clk 0:01:30.4]} 24... Bxe4 {[%clk 0:00:33.8]} 25. Rxc4
{[%clk 0:01:31]} 25... Nd6 {[%clk 0:00:34.1]} 26. Rc5 {[%clk 0:01:30.4]} 26...
Rc8 {[%clk 0:00:31.8]} 27. Rec1 {[%clk 0:01:30.8]} 27... Rxc5 {[%clk 0:00:32.2]}
28. dxc5 {[%clk 0:01:29.5]} 28... Nf5 {[%clk 0:00:32.8]} 29. Ne1 {[%clk
0:01:26.3]} 29... Rc8 {[%clk 0:00:30.4]} 30. h3 {[%clk 0:01:19]} 30... h5 {[%clk
0:00:29.7]} 31. Rc4 {[%clk 0:01:13.5]} 31... Bxg2 {[%clk 0:00:20.8]} 32. Nxg2
{[%clk 0:01:11.7]} 32... Qb7 {[%clk 0:00:21.5]} 33. Nf4 {[%clk 0:01:08.6]} 33...
Qb1+ {[%clk 0:00:22.1]} 34. Kg2 {[%clk 0:01:05.7]} 34... Qb5 {[%clk 0:00:22.7]}
35. Qc2 {[%clk 0:01:04.3]} 35... Qc6+ {[%clk 0:00:23.5]} 36. Kh2 {[%clk
0:00:58.6]} 36... h4 {[%clk 0:00:20.7]} 37. g4 {[%clk 0:00:57.4]} 37... Ng7
{[%clk 0:00:16]} 38. Qd3 {[%clk 0:00:51.2]} 38... g5 {[%clk 0:00:15.2]} 39. Nd5
{[%clk 0:00:51.2]} 39... Kf8 {[%clk 0:00:14.2]} 40. Nc3 {[%clk 0:00:46.9]} 40...
Ne6 {[%clk 0:00:13.8]} 41. Ne4 {[%clk 0:00:47.3]} 41... Qc7+ {[%clk 0:00:14]}
42. Kg2 {[%clk 0:00:47.7]} 42... Qe5 {[%clk 0:00:14.9]} 43. Qc3 {[%clk
0:00:47.6]} 43... Qxc3 {[%clk 0:00:15.2]} 44. Rxc3 {[%clk 0:00:48.4]} 44... Ke8
{[%clk 0:00:14.6]} 45. Ra3 {[%clk 0:00:49.3]} 45... Rc7 {[%clk 0:00:14.9]} 46.
Ra5 {[%clk 0:00:49.6]} 46... Kd7 {[%clk 0:00:15.7]} 47. Kf3 {[%clk 0:00:44.3]}
47... f6 {[%clk 0:00:15.7]} 48. Ra6 {[%clk 0:00:43.2]} 48... Nxc5 {[%clk
0:00:12.6]} 49. Nxc5+ {[%clk 0:00:43.7]} 49... Rxc5 {[%clk 0:00:13.8]} 50. Rxa7+
{[%clk 0:00:45.1]} 50... Ke6 {[%clk 0:00:15]} 51. Ra4 {[%clk 0:00:45.7]} 51...
Rc2 {[%clk 0:00:15.7]} 52. Re4+ {[%clk 0:00:46.2]} 52... Kf7 {[%clk 0:00:16.6]}
53. a4 {[%clk 0:00:47.2]} 53... Ra2 {[%clk 0:00:17.1]} 54. Rd4 {[%clk
0:00:47.6]} 54... e5 {[%clk 0:00:18.2]} 55. Rd7+ {[%clk 0:00:48.3]} 55... Ke6
{[%clk 0:00:19.2]} 56. Ra7 {[%clk 0:00:49.7]} 56... Kd6 {[%clk 0:00:16.5]} 57.
a5 {[%clk 0:00:50.3]} 57... Ke6 {[%clk 0:00:17.6]} 58. Ra8 {[%clk 0:00:51.5]}
58... Ra4 {[%clk 0:00:18.4]} 59. a6 {[%clk 0:00:52]} 59... e4+ {[%clk
0:00:17.9]} 60. Kg2 {[%clk 0:00:52.6]} 60... Kf7 {[%clk 0:00:17.9]} 61. Kf1
{[%clk 0:00:53.3]} 61... Ra2 {[%clk 0:00:18.4]} 62. Ke1 {[%clk 0:00:54]} 62...
Kg7 {[%clk 0:00:17.7]} 63. a7 {[%clk 0:00:53]} 63... Ra1+ {[%clk 0:00:15.6]} 64.
Kd2 {[%clk 0:00:53.9]} 64... Ra4 {[%clk 0:00:13.4]} 65. Kc3 {[%clk 0:00:54.6]}
65... Ra1 {[%clk 0:00:13.8]} 66. Kd4 {[%clk 0:00:55.3]} 66... Ra4+ {[%clk
0:00:13.9]} 67. Kd5 {[%clk 0:00:56.6]} 67... f5 {[%clk 0:00:12.7]} 68. gxf5
{[%clk 0:00:57]} 68... g4 {[%clk 0:00:13.9]} 69. hxg4 {[%clk 0:00:58.3]} 69...
h3 {[%clk 0:00:14.7]} 70. f6+ {[%clk 0:00:58]} 70... Kxf6 {[%clk 0:00:15.3]} 71.
Rf8+ {[%clk 0:00:58.4]} 71... Kg5 {[%clk 0:00:15.9]} 72. a8=Q {[%clk 0:00:57.8]}
1-0

[Event "*** Titled Tuesday Blitz"]
[Site "Chess.com"]
[Date "2019.07.02"]
[Round "3"]
[White "Michael_Scofield01"]
[Black "Philosopherrr"]
[Result "0-1"]
[WhiteElo "2706"]
[BlackElo "2508"]
[TimeControl "180+2"]
[EndTime "13:42:59 PDT"]
[Termination "Philosopherrr won by resignation"]

1. e4 {[%clk 0:03:01.9]} 1... e5 {[%clk 0:02:54.7]} 2. Nf3 {[%clk 0:03:02.5]}
2... Nc6 {[%clk 0:02:56.1]} 3. Bb5 {[%clk 0:03:03.2]} 3... a6 {[%clk 0:02:56.9]}
4. Ba4 {[%clk 0:03:04]} 4... Nf6 {[%clk 0:02:58.1]} 5. O-O {[%clk 0:03:04.6]}
5... Be7 {[%clk 0:02:58.9]} 6. Re1 {[%clk 0:03:05.6]} 6... b5 {[%clk 0:03:00.1]}
7. Bb3 {[%clk 0:03:06.4]} 7... d6 {[%clk 0:03:01.8]} 8. c3 {[%clk 0:03:07.3]}
8... O-O {[%clk 0:03:03]} 9. h3 {[%clk 0:03:08.5]} 9... Bb7 {[%clk 0:03:04.3]}
10. d4 {[%clk 0:03:08.9]} 10... Re8 {[%clk 0:03:05.4]} 11. Ng5 {[%clk
0:03:08.1]} 11... Rf8 {[%clk 0:03:06.1]} 12. Nf3 {[%clk 0:03:08.9]} 12... Re8
{[%clk 0:03:07.3]} 13. Nbd2 {[%clk 0:03:09.7]} 13... exd4 {[%clk 0:03:07.3]} 14.
cxd4 {[%clk 0:03:10.4]} 14... Nd7 {[%clk 0:03:08.3]} 15. Nf1 {[%clk 0:03:01.3]}
15... Na5 {[%clk 0:03:09.2]} 16. Bc2 {[%clk 0:03:01.1]} 16... Bf6 {[%clk
0:03:10.3]} 17. Ng3 {[%clk 0:02:55.6]} 17... g6 {[%clk 0:03:11.4]} 18. Rb1
{[%clk 0:02:48]} 18... c5 {[%clk 0:03:11.7]} 19. d5 {[%clk 0:02:47.2]} 19... Nc4
{[%clk 0:03:11.9]} 20. b3 {[%clk 0:02:46.3]} 20... Ncb6 {[%clk 0:03:06]} 21. Bf4
{[%clk 0:02:46]} 21... Ne5 {[%clk 0:03:07]} 22. Nxe5 {[%clk 0:02:45.3]} 22...
Bxe5 {[%clk 0:03:08.3]} 23. Bxe5 {[%clk 0:02:44.2]} 23... Rxe5 {[%clk
0:03:09.4]} 24. f4 {[%clk 0:02:44.1]} 24... Re8 {[%clk 0:03:10.1]} 25. Qf3
{[%clk 0:02:43.3]} 25... Rc8 {[%clk 0:02:39.1]} 26. f5 {[%clk 0:02:37.8]} 26...
Nd7 {[%clk 0:02:38.3]} 27. Qf4 {[%clk 0:02:31.4]} 27... Qf6 {[%clk 0:02:32.1]}
28. h4 {[%clk 0:02:20.1]} 28... Qe5 {[%clk 0:02:15.6]} 29. Qg5 {[%clk
0:02:13.1]} 29... Qf6 {[%clk 0:02:16.1]} 30. Qf4 {[%clk 0:02:10]} 30... Ne5
{[%clk 0:01:56]} 31. Rbd1 {[%clk 0:02:00.3]} 31... c4 {[%clk 0:01:56]} 32. b4
{[%clk 0:02:00]} 32... Kg7 {[%clk 0:01:51]} 33. Rf1 {[%clk 0:01:36.9]} 33... h6
{[%clk 0:01:20.9]} 34. fxg6 {[%clk 0:01:18.7]} 34... Qxf4 {[%clk 0:01:20.5]} 35.
Nh5+ {[%clk 0:01:10.3]} 35... Kxg6 {[%clk 0:01:16.2]} 36. Nxf4+ {[%clk
0:01:10.4]} 36... Kh7 {[%clk 0:01:13.7]} 37. Nh5 {[%clk 0:01:11.3]} 37... Kg6
{[%clk 0:01:12]} 38. Nf6 {[%clk 0:00:54.7]} 38... Red8 {[%clk 0:01:03]} 39. Rf4
{[%clk 0:00:53]} 39... c3 {[%clk 0:00:54.4]} 40. Rdf1 {[%clk 0:00:51.7]} 40...
Kg7 {[%clk 0:00:25.5]} 41. Nh5+ {[%clk 0:00:26.9]} 41... Kh8 {[%clk 0:00:25.4]}
42. Ng3 {[%clk 0:00:24.9]} 42... Rg8 {[%clk 0:00:19.9]} 43. Nf5 {[%clk
0:00:24.1]} 43... Rg6 {[%clk 0:00:15.2]} 44. Ne7 {[%clk 0:00:24.2]} 44... Kg7
{[%clk 0:00:16.7]} 45. h5 {[%clk 0:00:16.6]} 45... Rg5 {[%clk 0:00:16.7]} 46.
Nxc8 {[%clk 0:00:12.3]} 46... Bxc8 {[%clk 0:00:18.4]} 47. Rf6 {[%clk 0:00:13.5]}
47... Bh3 {[%clk 0:00:19.5]} 48. R6f2 {[%clk 0:00:10.9]} 48... Bg4 {[%clk
0:00:19.6]} 49. Re1 {[%clk 0:00:11.4]} 49... Bxh5 {[%clk 0:00:20.7]} 50. Kf1
{[%clk 0:00:10.4]} 50... Bg6 {[%clk 0:00:21.6]} 51. Re3 {[%clk 0:00:11.2]} 51...
Ng4 {[%clk 0:00:21.8]} 52. Rxc3 {[%clk 0:00:12.4]} 52... Nxf2 {[%clk 0:00:23.1]}
53. Kxf2 {[%clk 0:00:14.3]} 53... Re5 {[%clk 0:00:23.5]} 54. Kf3 {[%clk
0:00:11.6]} 54... f5 {[%clk 0:00:23.6]} 55. exf5 {[%clk 0:00:09.5]} 55... Bxf5
{[%clk 0:00:24.9]} 56. Bxf5 {[%clk 0:00:10]} 56... Rxf5+ {[%clk 0:00:26]} 57.
Ke4 {[%clk 0:00:11.2]} 57... Re5+ {[%clk 0:00:27.2]} 58. Kd4 {[%clk 0:00:11.9]}
58... Rg5 {[%clk 0:00:28.6]} 59. Rc6 {[%clk 0:00:12.9]} 59... Rg4+ {[%clk
0:00:29.4]} 60. Kc3 {[%clk 0:00:13.8]} 60... Rg3+ {[%clk 0:00:30.1]} 61. Kd4
{[%clk 0:00:14.9]} 61... Rg4+ {[%clk 0:00:31.1]} 62. Kd3 {[%clk 0:00:16.1]}
62... Rg3+ {[%clk 0:00:32.1]} 63. Ke4 {[%clk 0:00:17]} 63... Rg4+ {[%clk
0:00:33.4]} 64. Kf5 {[%clk 0:00:18.1]} 64... Rxb4 {[%clk 0:00:31.3]} 65. Rxd6
{[%clk 0:00:18.9]} 65... Rb2 {[%clk 0:00:32.6]} 66. Rd7+ {[%clk 0:00:20.2]}
66... Kf8 {[%clk 0:00:33.5]} 67. a3 {[%clk 0:00:18.1]} 67... Rxg2 {[%clk
0:00:32.2]} 68. Kf6 {[%clk 0:00:19]} 68... Ke8 {[%clk 0:00:32.6]} 69. Ra7 {[%clk
0:00:20]} 69... h5 {[%clk 0:00:27.7]} 70. Ke6 {[%clk 0:00:20.3]} 70... Rg6+
{[%clk 0:00:26]} 71. Kf5 {[%clk 0:00:21.3]} 71... Rh6 {[%clk 0:00:26.9]} 72. Ke5
{[%clk 0:00:12]} 72... h4 {[%clk 0:00:27.8]} 73. Rg7 {[%clk 0:00:08.7]} 73... h3
{[%clk 0:00:28.4]} 74. Rg1 {[%clk 0:00:10]} 74... h2 {[%clk 0:00:29.7]} 75. Rh1
{[%clk 0:00:11.5]} 75... Kd7 {[%clk 0:00:31.1]} 76. Kd4 {[%clk 0:00:11.7]} 76...
Kd6 {[%clk 0:00:32.3]} 77. Ke4 {[%clk 0:00:09.6]} 77... Rh4+ {[%clk 0:00:32.6]}
78. Kf3 {[%clk 0:00:10.9]} 78... Kxd5 {[%clk 0:00:33.8]} 79. Kg3 {[%clk
0:00:12.4]} 79... Rh8 {[%clk 0:00:34.5]} 80. Rd1+ {[%clk 0:00:12.5]} 80... Kc4
{[%clk 0:00:35.5]} 0-1

[Event "*** Titled Tuesday Blitz"]
[Site "Chess.com"]
[Date "2019.07.02"]
[Round "3"]
[White "DrVitman"]
[Black "ram1zan"]
[Result "1/2-1/2"]
[WhiteElo "2700"]
[BlackElo "2779"]
[TimeControl "180+2"]
[EndTime "13:43:13 PDT"]
[Termination "Game drawn by agreement"]

1. e4 {[%clk 0:03:01.9]} 1... d5 {[%clk 0:02:55.7]} 2. exd5 {[%clk 0:03:00.9]}
2... Nf6 {[%clk 0:02:53.6]} 3. Bb5+ {[%clk 0:03:01]} 3... Nbd7 {[%clk 0:02:50]}
4. d4 {[%clk 0:03:00.3]} 4... g6 {[%clk 0:02:50]} 5. Nf3 {[%clk 0:03:00.4]} 5...
Bg7 {[%clk 0:02:51.2]} 6. c4 {[%clk 0:02:58]} 6... O-O {[%clk 0:02:52.3]} 7. Nc3
{[%clk 0:02:47.3]} 7... Nb6 {[%clk 0:02:53.3]} 8. Qb3 {[%clk 0:02:27.3]} 8... a6
{[%clk 0:02:44.4]} 9. Ba4 {[%clk 0:02:27.5]} 9... e6 {[%clk 0:02:23.5]} 10. dxe6
{[%clk 0:02:22.2]} 10... Bxe6 {[%clk 0:02:25.4]} 11. d5 {[%clk 0:02:22.7]} 11...
Bf5 {[%clk 0:02:26.8]} 12. Be3 {[%clk 0:02:15.2]} 12... Ng4 {[%clk 0:02:11.2]}
13. Bxb6 {[%clk 0:02:13.2]} 13... cxb6 {[%clk 0:02:13.1]} 14. O-O {[%clk
0:02:13.2]} 14... Rc8 {[%clk 0:02:13.5]} 15. Rad1 {[%clk 0:02:02.3]} 15... Qd6
{[%clk 0:02:12]} 16. h3 {[%clk 0:01:51.7]} 16... Ne5 {[%clk 0:02:04.5]} 17. Nxe5
{[%clk 0:01:48.7]} 17... Bxe5 {[%clk 0:02:06.1]} 18. Rfe1 {[%clk 0:01:33.2]}
18... Rc7 {[%clk 0:01:45.5]} 19. Ne4 {[%clk 0:01:27.6]} 19... Bxe4 {[%clk
0:01:44.6]} 20. Rxe4 {[%clk 0:01:29.5]} 20... Rfc8 {[%clk 0:01:46.2]} 21. Rde1
{[%clk 0:01:07]} 21... Bf6 {[%clk 0:01:47.2]} 22. Qd3 {[%clk 0:00:50.2]} 22...
Bxb2 {[%clk 0:01:41]} 23. Bb3 {[%clk 0:00:48.7]} 23... Bf6 {[%clk 0:01:37.6]}
24. Re8+ {[%clk 0:00:42.1]} 24... Kg7 {[%clk 0:01:37.9]} 25. Rxc8 {[%clk
0:00:42.5]} 25... Rxc8 {[%clk 0:01:39.8]} 26. g3 {[%clk 0:00:43.3]} 26... Bb2
{[%clk 0:01:32]} 27. Kg2 {[%clk 0:00:43.5]} 27... Qf6 {[%clk 0:01:32.2]} 28. Qf3
{[%clk 0:00:40.9]} 28... Qd6 {[%clk 0:01:30.3]} 29. Qe3 {[%clk 0:00:38.3]} 29...
Rc7 {[%clk 0:01:27.8]} 30. Re2 {[%clk 0:00:35.5]} 30... Bf6 {[%clk 0:01:27.8]}
31. h4 {[%clk 0:00:35.4]} 31... h5 {[%clk 0:01:28.5]} 32. Qf3 {[%clk 0:00:32.9]}
32... Bd4 {[%clk 0:01:26.7]} 33. Re4 {[%clk 0:00:29.1]} 33... Bc5 {[%clk
0:01:17.7]} 34. Qf4 {[%clk 0:00:30]} 34... Qxf4 {[%clk 0:01:17.4]} 35. Rxf4
{[%clk 0:00:30.7]} 35... Re7 {[%clk 0:01:18.9]} 36. Kf1 {[%clk 0:00:31.5]} 36...
Kf8 {[%clk 0:01:19.2]} 37. Bc2 {[%clk 0:00:30.5]} 37... f5 {[%clk 0:01:16.9]}
38. Rf3 {[%clk 0:00:30.3]} 38... Ke8 {[%clk 0:01:13.5]} 39. Rd3 {[%clk
0:00:28.2]} 39... Kd7 {[%clk 0:01:14.8]} 40. Rd2 {[%clk 0:00:28.7]} 40... Rf7
{[%clk 0:00:51.9]} 41. Re2 {[%clk 0:00:29.3]} 41... Rf6 {[%clk 0:00:53.4]} 42.
Ba4+ {[%clk 0:00:26.7]} 42... Kc7 {[%clk 0:00:50.8]} 43. Re6 {[%clk 0:00:25.8]}
43... Rxe6 {[%clk 0:00:49.6]} 44. dxe6 {[%clk 0:00:27.7]} 44... Kd6 {[%clk
0:00:51.1]} 45. Be8 {[%clk 0:00:29]} 45... Kxe6 {[%clk 0:00:49.5]} 46. Bxg6
{[%clk 0:00:30.2]} 46... Ke5 {[%clk 0:00:47.8]} 47. Bxh5 {[%clk 0:00:31]} 47...
f4 {[%clk 0:00:49.2]} 48. g4 {[%clk 0:00:31]} 48... f3 {[%clk 0:00:48.8]} 49.
Bf7 {[%clk 0:00:26.2]} 49... Kf4 {[%clk 0:00:48.7]} 50. g5 {[%clk 0:00:26.5]}
50... Bd4 {[%clk 0:00:30.2]} 51. Bd5 {[%clk 0:00:26.3]} 51... Kg4 {[%clk
0:00:28.3]} 52. g6 {[%clk 0:00:26.7]} 52... a5 {[%clk 0:00:21.9]} 53. Bxb7
{[%clk 0:00:25.9]} 53... Kxh4 {[%clk 0:00:22.9]} 54. Bxf3 {[%clk 0:00:26.1]}
54... Kg5 {[%clk 0:00:24.2]} 55. Be4 {[%clk 0:00:26.8]} 55... Kf4 {[%clk
0:00:25.1]} 56. f3 {[%clk 0:00:25.1]} 56... Kg5 {[%clk 0:00:25]} 57. Ke2 {[%clk
0:00:25.6]} 57... Kf6 {[%clk 0:00:23.7]} 58. f4 {[%clk 0:00:23.6]} 58... Bc5
{[%clk 0:00:23.4]} 59. Kf3 {[%clk 0:00:24.3]} 59... Bd4 {[%clk 0:00:21.1]} 60.
Bd3 {[%clk 0:00:23.7]} 60... Bc5 {[%clk 0:00:22.1]} 61. a4 {[%clk 0:00:24.7]}
61... Bd4 {[%clk 0:00:23.2]} 62. Ke4 {[%clk 0:00:23.2]} 62... Bc5 {[%clk
0:00:21.5]} 63. Kd5 {[%clk 0:00:24.1]} 63... Be3 {[%clk 0:00:22.4]} 64. f5
{[%clk 0:00:24.9]} 64... Bc5 {[%clk 0:00:23.5]} 65. Kc6 {[%clk 0:00:26]} 65...
Be3 {[%clk 0:00:23.9]} 66. Kd7 {[%clk 0:00:24.3]} 66... Bd4 {[%clk 0:00:23.9]}
67. Be4 {[%clk 0:00:20]} 67... Be3 {[%clk 0:00:24.5]} 68. Kd6 {[%clk 0:00:17.5]}
68... Bc5+ {[%clk 0:00:24.6]} 69. Kd5 {[%clk 0:00:18.3]} 69... Be3 {[%clk
0:00:25.6]} 70. Bc2 {[%clk 0:00:18.3]} 70... Bc5 {[%clk 0:00:26.1]} 71. Kc6
{[%clk 0:00:15.4]} 71... Be3 {[%clk 0:00:26.3]} 72. Kd7 {[%clk 0:00:16.6]} 72...
Bd4 {[%clk 0:00:27.3]} 73. Ke8 {[%clk 0:00:17.3]} 73... Bc5 {[%clk 0:00:28.5]}
74. Bd3 {[%clk 0:00:18.7]} 74... Kg7 {[%clk 0:00:29]} 75. Kd7 {[%clk 0:00:14.6]}
75... Kf6 {[%clk 0:00:30.3]} 76. Kc6 {[%clk 0:00:12.6]} 76... Be3 {[%clk
0:00:29.4]} 77. Kd5 {[%clk 0:00:13.5]} 77... Bc5 {[%clk 0:00:29.8]} 78. g7
{[%clk 0:00:13.8]} 78... Kxg7 {[%clk 0:00:30.3]} 79. Ke5 {[%clk 0:00:13.8]}
79... Kf8 {[%clk 0:00:29]} 80. f6 {[%clk 0:00:12.6]} 80... Bg1 {[%clk
0:00:29.1]} 81. Be4 {[%clk 0:00:13.1]} 81... Bc5 {[%clk 0:00:30.1]} 82. Bd5
{[%clk 0:00:13.7]} 82... Bg1 {[%clk 0:00:32]} 83. Ke6 {[%clk 0:00:14.5]} 83...
Bc5 {[%clk 0:00:33.9]} 84. Kd7 {[%clk 0:00:14.7]} 84... Bg1 {[%clk 0:00:35.8]}
85. f7 {[%clk 0:00:16]} 85... Bc5 {[%clk 0:00:37.7]} 1/2-1/2

[Event "*** Titled Tuesday Blitz"]
[Site "Chess.com"]
[Date "2019.07.02"]
[Round "3"]
[White "Walter_White_Poland"]
[Black "Th3ChessViking"]
[Result "1/2-1/2"]
[WhiteElo "2301"]
[BlackElo "2450"]
[TimeControl "180+2"]
[EndTime "13:43:28 PDT"]
[Termination "Game drawn by repetition"]

1. Nf3 {[%clk 0:03:01.9]} 1... d5 {[%clk 0:02:56.3]} 2. c4 {[%clk 0:03:02.6]}
2... c6 {[%clk 0:02:51.6]} 3. e3 {[%clk 0:03:03.4]} 3... Nf6 {[%clk 0:02:36.9]}
4. Nc3 {[%clk 0:03:03.4]} 4... Bg4 {[%clk 0:02:15.4]} 5. Qb3 {[%clk 0:03:03.3]}
5... Qb6 {[%clk 0:02:11]} 6. Ne5 {[%clk 0:02:31.4]} 6... Be6 {[%clk 0:02:03.1]}
7. Qxb6 {[%clk 0:02:30.7]} 7... axb6 {[%clk 0:02:03.7]} 8. d4 {[%clk 0:02:14.8]}
8... Nbd7 {[%clk 0:01:58.4]} 9. cxd5 {[%clk 0:01:57.9]} 9... Nxd5 {[%clk
0:01:55.1]} 10. Nxd7 {[%clk 0:01:53.9]} 10... Kxd7 {[%clk 0:01:53.8]} 11. Nxd5
{[%clk 0:01:50]} 11... Bxd5 {[%clk 0:01:52.5]} 12. f3 {[%clk 0:01:45.8]} 12...
Rxa2 {[%clk 0:01:49.1]} 13. Rxa2 {[%clk 0:01:46.2]} 13... Bxa2 {[%clk 0:01:51]}
14. Bd2 {[%clk 0:01:41.9]} 14... g6 {[%clk 0:01:45.1]} 15. Bd3 {[%clk
0:01:41.2]} 15... Bg7 {[%clk 0:01:43.5]} 16. Ke2 {[%clk 0:01:42]} 16... e5
{[%clk 0:01:42.5]} 17. Ra1 {[%clk 0:01:36.7]} 17... Be6 {[%clk 0:01:29.5]} 18.
Ra7 {[%clk 0:01:30.2]} 18... Kc7 {[%clk 0:01:27.6]} 19. dxe5 {[%clk 0:01:15.9]}
19... Bxe5 {[%clk 0:01:27.8]} 20. Bc3 {[%clk 0:01:11.7]} 20... Bxc3 {[%clk
0:01:25.1]} 21. bxc3 {[%clk 0:01:12.6]} 21... b5 {[%clk 0:01:26.5]} 22. h4
{[%clk 0:01:04.4]} 22... Bb3 {[%clk 0:01:22.9]} 23. Ra3 {[%clk 0:01:01.6]} 23...
Be6 {[%clk 0:01:17.8]} 24. g4 {[%clk 0:00:59.4]} 24... h5 {[%clk 0:01:15.8]} 25.
g5 {[%clk 0:00:59.9]} 25... Rd8 {[%clk 0:01:15.8]} 26. f4 {[%clk 0:00:58.4]}
26... Kb6 {[%clk 0:01:09.1]} 27. e4 {[%clk 0:00:57.1]} 27... Bc4 {[%clk
0:01:07.5]} 28. Bxc4 {[%clk 0:00:57.4]} 28... bxc4 {[%clk 0:01:09.4]} 29. Ra4
{[%clk 0:00:54.6]} 29... Kc5 {[%clk 0:01:08.8]} 30. Ra5+ {[%clk 0:00:55.4]}
30... Kb6 {[%clk 0:00:55.3]} 31. Re5 {[%clk 0:00:34.7]} 31... Kc7 {[%clk
0:00:43.2]} 32. f5 {[%clk 0:00:25.5]} 32... Kd6 {[%clk 0:00:40.7]} 33. Ra5
{[%clk 0:00:15.4]} 33... Re8 {[%clk 0:00:37]} 34. Kf3 {[%clk 0:00:15.1]} 34...
Re5 {[%clk 0:00:34.7]} 35. Ra7 {[%clk 0:00:12.1]} 35... Rb5 {[%clk 0:00:29.9]}
36. fxg6 {[%clk 0:00:07.1]} 36... fxg6 {[%clk 0:00:30.2]} 37. Ra8 {[%clk
0:00:08.2]} 37... Re5 {[%clk 0:00:23.8]} 38. Rd8+ {[%clk 0:00:08.1]} 38... Kc5
{[%clk 0:00:21.6]} 39. Rf8 {[%clk 0:00:03.6]} 39... Re6 {[%clk 0:00:21.3]} 40.
Rf6 {[%clk 0:00:04.7]} 40... Kd6 {[%clk 0:00:21.2]} 41. Rf7 {[%clk 0:00:05.3]}
41... b5 {[%clk 0:00:22.5]} 42. Kf4 {[%clk 0:00:06.5]} 42... Kc5 {[%clk
0:00:21.5]} 43. Rf6 {[%clk 0:00:07.1]} 43... Kd6 {[%clk 0:00:20.6]} 44. e5+
{[%clk 0:00:08.3]} 44... Kd5 {[%clk 0:00:21.9]} 45. Rf7 {[%clk 0:00:09]} 45...
Rxe5 {[%clk 0:00:17.5]} 46. Rd7+ {[%clk 0:00:09.8]} 46... Ke6 {[%clk 0:00:18.7]}
47. Rc7 {[%clk 0:00:10.3]} 47... Rc5 {[%clk 0:00:18.8]} 48. Rg7 {[%clk
0:00:11.1]} 48... b4 {[%clk 0:00:10.5]} 49. cxb4 {[%clk 0:00:10.7]} 49... Rb5
{[%clk 0:00:11.3]} 50. Rxg6+ {[%clk 0:00:11]} 50... Kd5 {[%clk 0:00:12.5]} 51.
Rg8 {[%clk 0:00:09.9]} 51... c3 {[%clk 0:00:13.8]} 52. Ke3 {[%clk 0:00:09.5]}
52... Rxb4 {[%clk 0:00:13.7]} 53. Kd3 {[%clk 0:00:10.5]} 53... Rxh4 {[%clk
0:00:13.8]} 54. Kxc3 {[%clk 0:00:10.8]} 54... Rg4 {[%clk 0:00:14.9]} 55. g6
{[%clk 0:00:10.6]} 55... Kc5 {[%clk 0:00:16.3]} 56. g7 {[%clk 0:00:10.3]} 56...
h4 {[%clk 0:00:17.7]} 57. Rh8 {[%clk 0:00:10.7]} 57... Rg3+ {[%clk 0:00:16.1]}
58. Kc2 {[%clk 0:00:10.7]} 58... Rxg7 {[%clk 0:00:18]} 59. Rxh4 {[%clk
0:00:11.7]} 59... Rg3 {[%clk 0:00:17.4]} 60. Rf4 {[%clk 0:00:12.2]} 60... Kb5
{[%clk 0:00:17.5]} 61. Rh4 {[%clk 0:00:12.8]} 61... c5 {[%clk 0:00:18.8]} 62.
Rf4 {[%clk 0:00:13.6]} 62... Rg2+ {[%clk 0:00:18.4]} 63. Kc3 {[%clk 0:00:13.9]}
63... Ra2 {[%clk 0:00:19.8]} 64. Rh4 {[%clk 0:00:13.5]} 64... Ra3+ {[%clk
0:00:19.8]} 65. Kb2 {[%clk 0:00:14.5]} 65... Rd3 {[%clk 0:00:17]} 66. Kc2 {[%clk
0:00:14.6]} 66... Rg3 {[%clk 0:00:17.8]} 67. Rf4 {[%clk 0:00:14.4]} 67... Rg8
{[%clk 0:00:13.9]} 68. Kc3 {[%clk 0:00:12.2]} 68... Ra8 {[%clk 0:00:15.1]} 69.
Kb3 {[%clk 0:00:12.2]} 69... Rg8 {[%clk 0:00:13.8]} 70. Rh4 {[%clk 0:00:12.2]}
70... Rg2 {[%clk 0:00:13.6]} 71. Kc3 {[%clk 0:00:12.3]} 71... Rg1 {[%clk
0:00:14.6]} 72. Rf4 {[%clk 0:00:11.9]} 72... Rb1 {[%clk 0:00:15.3]} 73. Rh4
{[%clk 0:00:11.3]} 73... Ra1 {[%clk 0:00:15.8]} 74. Kb3 {[%clk 0:00:11.2]} 74...
Rf1 {[%clk 0:00:12.6]} 75. Rg4 {[%clk 0:00:10.7]} 75... Rf3+ {[%clk 0:00:13.6]}
76. Kc2 {[%clk 0:00:10.8]} 76... c4 {[%clk 0:00:15.5]} 77. Rg8 {[%clk 0:00:11]}
77... Rf2+ {[%clk 0:00:15.7]} 78. Kc3 {[%clk 0:00:11.4]} 78... Rf3+ {[%clk
0:00:17.1]} 79. Kc2 {[%clk 0:00:12.2]} 79... Rf2+ {[%clk 0:00:08.5]} 80. Kc3
{[%clk 0:00:12.4]} 80... Rf3+ {[%clk 0:00:09.7]} 81. Kc2 {[%clk 0:00:13.1]}
1/2-1/2